Cogmind - Beta 15 @@@ ROGUE MODE // 2025.09.12 @ 19:56:15 Player: Petvaria Result: Destroyed by S-10 Pest with Light Assault Rifle Performance ------------- Evolutions (0) 0 Regions Visited (2) 400 Robots Destroyed (21) 105 Value Destroyed (617) 617 Prototype IDs (11) 220 Alien Tech Used (0) 0 Bonus (0) 0 TOTAL SCORE: 1342 Bonus ------- None Cogmind --------- Core Integrity 0/250 Matter 179/300 Energy 159/170 System Corruption 0% Temperature Cool (0) Movement Treading (160) Location -10/Subcaves Parts ------- > --- POWER (1) -------- Makeshift Power Source > --- PROPULSION (2) --- Spiked Treads Spiked Treads > --- UTILITY (2) ------ Small Storage Unit > --- WEAPON (2) ------- Medium Laser Subdweller Machine Gun > --- INVENTORY (8) ---- Aluminum Leg Wheel Medium Laser Assault Rifle Subdweller Machine Gun Grenade Launcher Subdweller Shrapnel Launcher Makeshift Sword Peak State ------------ > --- POWER ------------ Makeshift Power Source > --- PROPULSION ------- Spiked Treads Spiked Treads > --- UTILITY ---------- Small Storage Unit > --- WEAPON ----------- Subdweller Machine Gun Makeshift Sword > --- INVENTORY -------- Aluminum Leg Wheel Medium Laser Medium Laser Assault Rifle Subdweller Machine Gun Grenade Launcher Subdweller Shrapnel Launcher [Rating: 16] Favorites ----------- Power Light Ion Engine Engine Light Ion Engine Propulsion Light Treads Treads Light Treads Leg Aluminum Leg Utility Small Storage Unit Storage Small Storage Unit Weapon Assault Rifle Energy Gun Medium Laser Ballistic Gun Assault Rifle Ballistic Cannon Battle Cannon Launcher Grenade Launcher Slashing Weapon Makeshift Sword Build | -11 -10 -10 ------- Run | Yrd Mat Sub Slots Evolved . | . . . Power . | . . . Propulsion . | . . . Utility . | . . . Weapon . | . . . Parts Attached 24 | 6 3 15 Power 6 | 1 1 4 Engine 6 | 1 1 4 Core . | . . . Reactor . | . . . Propulsion 5 | 2 . 3 Treads 4 | 2 . 2 Leg 1 | . . 1 Wheel . | . . . Hover . | . . . Flight . | . . . Utility 1 | 1 . . Device . | . . . Storage 1 | 1 . . Processor . | . . . Hackware . | . . . Protection . | . . . Artifact . | . . . Weapon 12 | 2 2 8 Energy Gun 2 | 1 . 1 Energy Cannon . | . . . Ballistic Gun 7 | 1 1 5 Ballistic Cannon 1 | . . 1 Launcher 1 | . 1 . Special Weapon . | . . . Impact Weapon . | . . . Slashing Weapon 1 | . . 1 Piercing Weapon . | . . . Special Melee Weapon . | . . . Unidentified Prototypes . | . . . Parts Lost 9 | . 1 8 Power 3 | . 1 2 Propulsion 2 | . . 2 Utility . | . . . Weapon 4 | . . 4 Highest Loss Streak 4 | . 1 4 To Critical Strikes . | . . . Average Backups 6 | 3 7 6 Power . | . . . Propulsion 2 | 2 3 2 Utility . | . . . Weapon 3 | . 2 4 Tool/Special . | . . . Unused Backups 4 | . 1 3 Power . | . . . Propulsion 3 | . 1 2 Utility . | . . . Weapon 1 | . . 1 Tool/Special . | . . . Average Slot Usage (%) 66 | . 84 62 Engine 9 | . 13 8 Treads 12 | . 28 9 Leg 1 | . . 1 Storage 14 | . 14 14 Energy Gun 4 | . 14 2 Ballistic Gun 17 | . 10 18 Ballistic Cannon 3 | . . 4 Launcher 1 | . 3 . Slashing Weapon 1 | . . 1 Peak Build Rating 16 | 6 6 16 Average Rating 6 | 4 5 7 On Entrance 4 | . 6 6 Naked Turns . | . . . Heaviest Build 16 | 11 13 16 Greatest Support 40 | 40 40 40 Greatest Overweight (x) 4 | . . 4 Average Overweight (x) 1 | . . 1 Largest Inventory Capacity 8 | 8 8 8 Average Capacity 7 | 7 8 8 Most Carried 8 | 6 8 8 Average Carried 6 | 3 7 6 Final Capacity 8 | 8 8 8 Final Carried 8 | 6 7 8 Class Distribution -------------------- 86% | Mutant 13% | Derelict-Mutant Dominant Class ---------------- Mutant | -10/Materials Mutant | -10/Subcaves Resources | -11 -10 -10 ----------- Run | Yrd Mat Sub Matter Collected 897 | 212 118 567 Remotely . | . . . Salvage Created 684 | . 288 396 Parts 37 | . 15 22 Haulers Intercepted 1 | . 1 . Recyclers Shooed . | . . . Parts Field Recycled . | . . . Retrieved Matter . | . . . Parts Self-Destructed . | . . . Prevented . | . . . Kills | -11 -10 -10 ------- Run | Yrd Mat Sub Combat Hostiles Destroyed 19 | . 7 12 Guns 14 | . 7 7 Cannons 3 | . . 3 AOE 2 | . . 2 Classes Destroyed 6 | . 4 2 Hauler 1 | . 1 . Watcher 1 | . 1 . Swarmer 5 | . 3 2 Grunt 4 | . 4 . Artisan 1 | . . 1 Subdweller 10 | . . 10 Best Kill Streak 3 | . 3 2 Combat Bots Only 2 | . 2 2 Max Kills in Single Turn 2 | . 1 2 Gunslinging 1 | . . 1 Exploded 1 | . . 1 Melee . | . . . Uniques/NPCs Destroyed . | . . . Combat | -11 -10 -10 -------- Run | Yrd Mat Sub Hostile Shots Fired 82 | . 27 55 Missed 15 | . 6 9 Hits 67 | . 21 46 Projectile 67 | . 21 46 Critical Strikes 2 | . . 2 Damage Taken 1278 | . 222 1056 Core 252 | . 22 230 Absorbed by Shields . | . . . Core Remaining (%) 100 | 100 . . Volleys Fired 80 | . 25 55 Largest 2 | . 2 2 Hottest 80 | . 70 80 Shots Fired 135 | . 47 88 Gun 103 | . 46 57 Cannon 15 | . . 15 Launcher 17 | . 1 16 Special . | . . . Kinetic 82 | . 22 60 Thermal 36 | . 24 12 Explosive 17 | . 1 16 Electromagnetic . | . . . Robot Hit Streak 17 | . 11 17 Robot Miss Streak 2 | . 2 2 Penetration Max . | . . . Secondary Targets 1 | . . 1 Max Gunslinging Chain 1 | . . 1 Shots Hit Robots 97 | . 34 63 Core Hits 37 | . 15 22 Critical Kills . | . . . Critical Parts Destroyed . | . . . Critical Strikes 5 | . 3 2 Burn 5 | . 3 2 Melee Attacks 3 | . . 3 Impact . | . . . Slashing 3 | . . 3 Piercing . | . . . Sneak Attacks . | . . . Combat Hostiles . | . . . Follow-up Attacks . | . . . Damage Inflicted 1549 | . 405 1144 Guns 1079 | . 405 674 Cannons 278 | . . 278 Explosions 192 | . . 192 Melee . | . . . Ramming . | . . . Kinetic 985 | . 170 815 Thermal 372 | . 235 137 Explosive 192 | . . 192 Electromagnetic . | . . . Impact . | . . . Slashing . | . . . Piercing . | . . . Highest Corruption . | . . . Average Corruption . | . . . Corruption Purged . | . . . Corruption Blocked . | . . . Overload Shots . | . . . Overflow Damage . | . . . Projectiles . | . . . Explosions . | . . . Melee . | . . . Knockbacks 4 | . . 4 Impact . | . . . Kinetic 4 | . . 4 Secondary . | . . . Self-Inflicted Damage 33 | . . 33 Shots 2 | . . 2 Rammed . | . . . Targets Rammed . | . . . Kicked . | . . . Crushed . | . . . Highest Temperature 532 | . 98 532 Average Temperature 83 | . 22 320 Received Heat Transfer 859 | . 90 769 Effects 6 | . . 6 Energy Bleed 2 | . . 2 Matter Decay 1 | . . 1 Damage (major) 3 | . . 3 Siege Activations . | . . . Martial Activations . | . . . Shielding Activations . | . . . Robots Disrupted . | . . . Combat Hostiles . | . . . Robots Corrupted . | . . . Combat Hostiles . | . . . Parts Fried . | . . . Impact Corruptions . | . . . Robots Melted . | . . . Combat Hostiles . | . . . Parts Melted 1 | . 1 . Heat Transferred 1480 | . 925 555 Parts Sabotaged . | . . . Parts Stolen . | . . . Parts Stripped . | . . . Power Chain Reactions . | . . . Alert | -11 -10 -10 ------- Run | Yrd Mat Sub Maximum Alert Level . | . . . Low Security (%) 100 | 100 100 . Level 1 . | . . . Level 2 . | . . . Level 3 . | . . . Level 4 . | . . . Level 5 . | . . . High Security . | . . . Max Security . | . . . Peak Influence 93 | . 93 . Initial . | . . . Average 14 | . 16 . Influence Increases 255 | . 205 50 Destroy 0b10 Robot/C 180 | . 140 40 Destroy 0b10 Robot/NC 10 | . 10 . Destroy Leader 44 | . 34 10 Destroy Structure 6 | . 6 . Lose Combat Pursuer 15 | . 15 . Influence Decreases 205 | . 154 51 Entered New Map 25 | . . 25 Time Decay 170 | . 144 26 Lost Part 10 | . 10 . Squads Dispatched 1 | . 1 . Investigation . | . . . Extermination . | . . . Reinforcement 1 | . 1 . Assault . | . . . Garrison . | . . . Intercept . | . . . Searches Triggered . | . . . Construction Impeded . | . . . Haulers Reinforced . | . . . Active Scanning Responses . | . . . Cargo Convoy Interrupts . | . . . Stealth | -11 -10 -10 --------- Run | Yrd Mat Sub Distress Signals 1 | . 1 . Communications Jammed . | . . . Distress Signals . | . . . Times Spotted 25 | . 12 13 Peak Tracking Total 5 | . 5 2 Tactical Retreats 1 | . 1 . Traps | -11 -10 -10 ------- Run | Yrd Mat Sub Traps Triggered . | . . . Indirectly . | . . . Trap Hack Attempts . | . . . Triggered . | . . . Disarmed . | . . . Reprogrammed . | . . . Reused . | . . . Traps Extracted . | . . . Installed . | . . . Triggered . | . . . Machines | -11 -10 -10 ---------- Run | Yrd Mat Sub Machines Disabled . | . . . Max in Single Turn . | . . . Machines Repaired . | . . . Machines Dismantled . | . . . Machines Sabotaged . | . . . Overloaded Fab Kills . | . . . Hacking | -11 -10 -10 --------- Run | Yrd Mat Sub Machines Accessed 2 | . . 2 Terminals . | . . . Fabricators . | . . . Repair Stations . | . . . Recycling Units . | . . . Scanalyzers . | . . . Garrison Access . | . . . Total Hacks 5 | . . 5 Successful 5 | . . 5 Failed . | . . . Catastrophic . | . . . Database Lockouts . | . . . Manual . | . . . Terminals . | . . . Fabricators . | . . . Repair Stations . | . . . Recycling Units . | . . . Scanalyzers . | . . . Garrison Access . | . . . Terminal Hacks 5 | . . 5 Record 4 | . . 4 Proto ID Catalog 1 | . . 1 Fabricator Hacks . | . . . Repair Station Hacks . | . . . Recycling Unit Hacks . | . . . Scanalyzer . | . . . Garrison Access Hacks . | . . . Unauthorized Hacks . | . . . Terminals . | . . . Fabricators . | . . . Repair Stations . | . . . Recycling Units . | . . . Scanalyzers . | . . . Garrison Access . | . . . Data Cores Recovered . | . . . Used . | . . . Hacking Detections . | . . . Full Trace Events . | . . . Feedback Events . | . . . Feedback Blocked . | . . . Robot Schematics Acquired . | . . . Robots Built . | . . . Authchips . | . . . Time . | . . . Total Robot Build Rating . | . . . Part Schematics Acquired . | . . . Parts Built . | . . . Authchips . | . . . Time . | . . . Total Part Build Rating . | . . . Parts Repaired . | . . . Time . | . . . Parts Recycled . | . . . Recycled Matter . | . . . Retrieved Matter . | . . . Retrieved Components . | . . . Parts Scanalyzed . | . . . Part Schematics Acquired . | . . . Parts Damaged . | . . . Bothacking | -11 -10 -10 ------------ Run | Yrd Mat Sub Used RIF Installer . | . . . Robots Hacked . | . . . Non-combat . | . . . Combat . | . . . Robot Hacks Applied . | . . . Relay Couplers Released . | . . . Fabnet Peak Effective % . | . . . Robots Rewired . | . . . Allies Hacked . | . . . Hacks Repelled . | . . . Allies | -11 -10 -10 -------- Run | Yrd Mat Sub Total Allies . | . . . Largest Group . | . . . Highest-Rated Group . | . . . Highest-Rated Ally . | . . . Total Orders . | . . . Ally Attacks . | . . . Total Damage . | . . . Kills . | . . . Allies Corrupted . | . . . Allies Melted . | . . . Intel | -11 -10 -10 ------- Run | Yrd Mat Sub Active Infowar (turns) . | . . . Robot Analysis Total . | . . . Derelict Logs Recovered 1 | . . 1 Drone Launches . | . . . Drone Recoveries . | . . . Exploration | -11 -10 -10 ------------- Run | Yrd Mat Sub Turns Passed 4547 | 88 850 3609 Spaces Moved 2208 | 59 334 1815 Core 1042 | 21 . 1021 Treads 948 | 38 334 576 Legs 218 | . . 218 Wheels . | . . . Hover . | . . . Flight . | . . . Fastest Speed 50 | 50 160 120 Average Speed 180 | 120 160 186 Slowest Speed 250 | 160 160 250 Overloaded Moves . | . . . Propulsion Burnouts . | . . . Robots Hopped . | . . . Potential Cave-ins . | . . . Cave-ins Triggered . | . . . Exploration Rate (%) 44 | 4 52 77 Regions Visited 2 Branch Regions 1 Pre-discovered Areas 3 | . . 3 Known Exits Taken . | . . . Unknown Exits Taken 2 | 1 1 . Scrap Searched 3 | . . 3 Spaces Dug 13 | . . 13 Terrain Destroyed 76 | . 4 72 Melee . | . . . Projectile 1 | . . 1 AOE 75 | . 4 71 Terrain Rammed . | . . . Walls Destroyed . | . . . Machines Disabled . | . . . Actions | -11 -10 -10 --------- Run | Yrd Mat Sub Total 2631 | 76 603 1952 Wait 275 | . 234 41 Move 2206 | 58 333 1815 Hop . | . . . Pick Up 25 | 12 3 10 Fast Attach 2 | . . 2 Attach 16 | 6 1 9 Detach . | . . . Swap 19 | . 5 14 Drop 5 | . 2 3 Fire 80 | . 25 55 Melee 3 | . . 3 Ram . | . . . Kick . | . . . Crush . | . . . Escape Stasis . | . . . Rewire . | . . . Trap . | . . . Miscellaneous . | . . . Route ------- -11/Scrapyard -10/Materials (discovered 4 exits: [*Mat x2] / [*Min] / *Sub) -10/Subcaves (discovered 2 exits: [*Mat x2]) History --------- Turn | Location | Event 5 | -11/Scrapyard | Discovered new exit (range 15) 89 | -11/Scrapyard | Entered Materials 135 | -10/Materials | Discovered new exit (range 16) 190 | -10/Materials | Discovered new exit (range 12) 300 | -10/Materials | Build established: Mutant 502 | -10/Materials | Discovered new exit (range 15) 921 | -10/Materials | Discovered new exit (range 7) 939 | -10/Materials | Entered Subcaves 1009 | -10/Subcaves | Visited Clippyterm 1014 | -10/Subcaves | Learned location of Deep Caves (-7) 1014 | -10/Subcaves | Learned Factory emergency access door positions 1318 | -10/Subcaves | Lost 4 parts (1p2n1w) 1442 | -10/Subcaves | Discovered new exit (range 10) 1604 | -10/Subcaves | Discovered new exit (range 11) 1618 | -10/Subcaves | Learned location of Zion (-7) 1618 | -10/Subcaves | Met a Zionite searching for "candidates" 1678 | -10/Subcaves | A swath of the cavern ceiling suddenly collapsed 1811 | -10/Subcaves | Ambushed by Subdweller buried in earth 2000 | -10/Subcaves | Shifting Twisted Machinery released Battle Rifle 2049 | -10/Subcaves | Shifting Twisted Machinery released Enh. Flamer 2340 | -10/Subcaves | Core integrity fell below 50% 2401 | -10/Subcaves | Core integrity fell below 20% 3089 | -10/Subcaves | Visited 4L-MR0's lab 3347 | -10/Subcaves | Shifting Twisted Machinery released Sub. Beam Cannon 3865 | -10/Subcaves | Shifting Twisted Machinery released Spk. Treads 3881 | -10/Subcaves | Shifting Twisted Machinery released Mak. Sword 4197 | -10/Subcaves | Build established: Derelict-Mutant 4548 | -10/Subcaves | Destroyed by S-10 Pest with Light Assault Rifle Last Messages --------------- 4P-8EP(u) tweaks Twisted Machinery. 4P-8EP(u) cries out in pain. 4P-8EP(u) destroyed. The unstable cave ceiling collapses. Spk. Treads falls loose from the Twisted Machinery. Mak. Sword falls loose from the Twisted Machinery. Acquired Mak. Sword. Dropped Aluminum Leg. Acquired Spk. Treads. Acquired 24 matter. Subatomizers dissect the Lgt. Ion Engine. Subatomizers dissect the Disposable Heat Sink. ZI-IFR(u) tweaks Twisted Machinery. S-10 Pest destroyed. Switching to secondary target: S-10 Pest. S-10 Pest destroyed. Destroyed Flight Unit. Map ----- +----------------------------------------------------+ | ?????????????????????????????????????????????????? | | ?????????????????????????????????????????????????# | | ????????????????????????????????????????????????## | | ????????????????????????????????????????????????# | | ????????????????????????????????????????????????# | | ????????????????????????????????????????????????# | | ????????????????????????????????????????????????# | | ????????????????????????????????????????????????#" | | ????????????????????????????????????????????????# | | ????????????????????????????????????????????????## | | ?????????????????????? ??????????????????????? | | ?????????????????????? ?????????????????????? | | ?????????????????????? ?????????????????????? | | ??????????????? ???? ?????????????????????? | | ?????????????# ??? ?????????????????????? | | ?????????????? ??? ?????????????????????## | | ??????????????# ?? ????????????????????## | | ??????????????# ??# ????????????????????# | | ??????????????? ?# ????????????????????#"" | | ???????????????? ## ?????????????????????# | | ?????????????????# ?????????????????????## | | ?????????????????# ????????????######????## | | ??????????????????# ??####?######""" ##????? | | ????????????????????# #### ### #|#""""""####?? | | ?????????????????????# =s# """""" " ### | | ?????????????????????# %@ #?# | | ??????????????????# # # # ### ###" | | ??????????????????# #############?## | | ??????????????????#####???????????????# | | ??????????????????????????????????????########## | | ???????????????????????????????????????????????### | | ?????????????????????????????????????????????????? | | ?????????????????????????????????????????????????? | | ?????????????????????????????????????????????????? | | ?????????????????????????????????????????????????? | | ?????????????????????????????????????????????????? | | ?????????????????????????????????????????????????? | | ?????????????????????????????????????????????????? | | ?????????????????????????????????????????????????? | | ?????????????????????????????????????????????????? | | ?????????????????????????????????????????????????? | | ?????????????????????????????????????????????????? | | ?????????????????????????????????????????????????? | | ?????????????????????????????????????????????????? | | ?????????????????????????????????????????????????? | | | | | | | | | | | +----------------------------------------------------+ Best States ------------- Heat Dissipation 25 Energy Generation 15 Energy Capacity 200 Matter Stores 300 Matter Capacity 300 Sight Range 16 Terrain Scan Density 10 Evasion (%) 50 Recoil Reduction 2 Item Schematics ----------------- None Robot Schematics ------------------ None Fabricated ------------ Nothing Repaired ---------- Nothing Alien Tech Used ----------------- None Achievements -------------- None Challenges ------------ None Game ------ Seed ShadingAlloyCleaver Manual? 0 Play Time 00:16:56 Cumulative 201.3 hours Start 2025.09.12 @ 19:41:31 End 2025.09.12 @ 19:56:15 Sessions 1 Manual Loads 0 Difficulty Rogue Special Mode None Game No. 175 Rogue 175 Adventurer 0 Explorer 0 Win Type - Total 10 Types 4/0/2/2/1/0/0/0/0/1 Lore% 89 Gallery% 84 Achievement% 67 Wizard Run 0 Options --------- Layout 1 ASCII 0 Keyboard 0 Movement Numpad Keybinds 0 Fullscreen 1 Font 24/Proggy Map View 50x35 Zoom Use 0% Tactical HUD 0 Map Filters NONE Filters NONE Steam 1 RUN: 368216d9-954c-4522-98d0-77abb26be54a